bitfinex/quotes_BTCUSD_20240927
["timestamp","ask_amount","ask_price","bid_price","bid_amount"]
[1727480473603,0.36864343,65867.0,65866.0,0.00047233]
[1727480473807,0.48064343,65867.0,65866.0,0.00047233]
[1727480474266,0.46664343,65867.0,65866.0,0.00047233]
[1727480474519,0.47464343,65867.0,65866.0,0.00047233]
[1727480476016,0.47568516,65867.0,65866.0,0.00047233]
[1727480484806,0.66308516,65867.0,65866.0,0.00047233]
[1727480486683,0.65108516,65867.0,65866.0,0.00047233]
[1727480486883,0.65708516,65867.0,65866.0,0.00047233]
[1727480487298,0.66908516,65867.0,65866.0,0.00047233]
[1727480488345,0.69289041,65867.0,65866.0,0.00047233]
[1727480490266,0.97830024,65867.0,65866.0,0.00047233]
[1727480490524,0.69214499,65867.0,65866.0,0.00047233]
[1727480491015,0.66833974,65867.0,65866.0,0.00047233]
[1727480494149,0.69214495,65867.0,65866.0,0.00047233]
[1727480497114,0.50474495,65867.0,65866.0,0.11556726]
[1727480497526,0.48093974,65867.0,65866.0,0.12275938]
[1727480497733,0.46893974,65867.0,65866.0,0.00047233]
[1727480498160,0.47693974,65867.0,65866.0,0.00047233]
[1727480498595,0.46893974,65867.0,65866.0,0.00047233]
[1727480499011,0.46893974,65867.0,65866.0,0.11556726]
[1727480499012,0.47593974,65867.0,65866.0,0.11556726]
[1727480499215,0.46193974,65867.0,65866.0,0.11556726]
[1727480499445,0.45493974,65867.0,65866.0,0.11556726]
[1727480499678,0.46593974,65867.0,65866.0,0.11556726]
[1727480499912,0.46093974,65867.0,65866.0,0.11556726]
[1727480500145,0.47093974,65867.0,65866.0,0.11556726]
[1727480500388,0.47163744,65867.0,65866.0,0.11556726]
[1727480503830,0.60765749,65867.0,65866.0,0.11556726]
[1727480504080,0.47163744,65867.0,65866.0,0.11556726]
[1727480504544,0.60765749,65867.0,65866.0,0.11556726]
[1727480505269,0.47163744,65867.0,65866.0,0.11556726]
[1727480505517,0.60765749,65867.0,65866.0,0.11556726]
[1727480505760,0.47163744,65867.0,65866.0,0.11556726]
[1727480506245,0.49544128,65867.0,65866.0,0.11556726]
[1727480507220,0.49544128,65867.0,65866.0,0.00047233]
[1727480507488,0.63146133,65867.0,65866.0,0.00047233]
[1727480507723,0.47163744,65867.0,65866.0,0.00047233]
[1727480510133,0.47171042,65867.0,65866.0,0.00047233]
[1727480510850,0.60776951,65867.0,65866.0,0.00047233]
[1727480511581,0.60758985,65867.0,65866.0,0.11556726]
[1727480511995,0.63139381,65867.0,65866.0,0.11556726]
[1727480514457,0.49533972,65867.0,65866.0,0.11556726]
[1727480515293,0.47153576,65867.0,65866.0,0.11556726]
[1727480516718,0.66903576,65867.0,65866.0,0.00047233]
[1727480517115,0.82209662,65867.0,65866.0,0.00047233]
[1727480517761,0.66903576,65867.0,65866.0,0.00047233]
[1727480517963,0.82214575,65867.0,65866.0,0.00047233]
[1727480518253,0.66903576,65867.0,65866.0,0.00047233]
[1727480518454,0.69284135,65867.0,65866.0,0.00047233]
[1727480519740,0.97609147,65867.0,65866.0,0.00047233]
[1727480519967,0.69202862,65867.0,65866.0,0.00047233]
[1727480520682,0.8451251,65867.0,65866.0,0.00047233]
[1727480521147,0.82131951,65867.0,65866.0,0.00047233]
[1727480521373,0.66822303,65867.0,65866.0,0.00047233]
[1727480521616,0.151846,65856.0,65855.0,0.11509493]
[1727480521837,0.251851,65854.0,65853.0,0.0496892]
[1727480522063,0.251855,65852.0,65851.0,0.11509493]
[1727480522294,0.75846803,65852.0,65851.0,0.11509493]
[1727480522852,0.75846803,65852.0,65851.0,0.11009493]
[1727480523296,0.75773053,65852.0,65851.0,0.11009493]
[1727480523514,0.76273053,65852.0,65851.0,0.11009493]
[1727480524664,0.76373053,65852.0,65851.0,0.11009493]
[1727480528128,0.76358527,65852.0,65851.0,0.11009493]
[1727480529280,0.87687202,65852.0,65851.0,0.11009493]
[1727480531861,0.76358527,65852.0,65851.0,0.11009493]
[1727480532034,0.87685359,65852.0,65851.0,0.11009493]
[1727480533013,0.87680102,65852.0,65851.0,0.11009493]
[1727480533728,0.87680102,65852.0,65851.0,0.11092293]
[1727480534430,0.76354013,65852.0,65851.0,0.11092293]
[1727480538509,0.85412949,65852.0,65851.0,0.11092293]
[1727480542683,0.76354013,65852.0,65851.0,0.000828]
[1727480542933,0.76354013,65852.0,65851.0,0.11592293]
[1727480545416,0.45982913,65852.0,65851.0,0.39272293]
[1727480545869,0.45982913,65852.0,65851.0,0.39999742]
[1727480546754,0.55206223,65852.0,65851.0,0.39999742]
[1727480547603,0.55189053,65852.0,65851.0,0.39999742]
[1727480547810,0.55189053,65852.0,65851.0,0.00810249]
[1727480548066,0.4613109,65852.0,65851.0,0.00810249]
[1727480550377,0.57453544,65852.0,65851.0,0.00810249]
[1727480551615,0.55191239,65852.0,65851.0,0.00810249]
[1727480552448,0.259511,65852.0,65851.0,0.00810249]
[1727480552655,0.55224436,65852.0,65851.0,0.00810249]
[1727480553143,0.4616369,65852.0,65851.0,0.00810249]
[1727480553346,0.55224436,65852.0,65851.0,0.00810249]
[1727480554534,0.4616369,65852.0,65851.0,0.00810249]
[1727480554739,0.6605369,65852.0,65851.0,0.00810249]
[1727480554957,0.68434434,65852.0,65851.0,0.00810249]
[1727480555147,0.6605369,65852.0,65851.0,0.000828]
[1727480557108,0.79644809,65852.0,65851.0,0.000828]
[1727480557320,0.6605369,65852.0,65851.0,0.000828]
[1727480557519,0.79644809,65852.0,65851.0,0.000828]
[1727480558134,0.82025638,65852.0,65851.0,0.000828]
[1727480560169,0.79644809,65852.0,65851.0,0.000828]
[1727480560782,0.6605369,65852.0,65851.0,0.000828]
[1727480562223,0.65985805,65852.0,65851.0,0.000828]
[1727480562664,0.65885805,65852.0,65851.0,0.000828]
[1727480562863,0.66385805,65852.0,65851.0,0.000828]
[1727480563067,0.65885805,65852.0,65851.0,0.000828]
[1727480563293,0.66685805,65852.0,65851.0,0.000828]
[1727480563522,0.65385805,65852.0,65851.0,0.000828]
[1727480563962,0.67185805,65852.0,65851.0,0.000828]
[1727480564175,0.66085805,65852.0,65851.0,0.000828]
[1727480564379,0.65385805,65852.0,65851.0,0.000828]
[1727480564593,0.66585805,65852.0,65851.0,0.000828]
[1727480565825,0.67385805,65852.0,65851.0,0.000828]
[1727480566007,0.69766709,65852.0,65851.0,0.000828]
[1727480566273,0.67766709,65852.0,65851.0,0.000828]
[1727480566478,0.69066709,65852.0,65851.0,0.000828]
[1727480566692,0.68766709,65852.0,65851.0,0.000828]
[1727480567132,0.476411,65852.0,65851.0,0.000828]
[1727480567312,0.67754548,65852.0,65851.0,0.000828]
[1727480570547,0.70135434,65852.0,65851.0,0.000828]
[1727480571519,0.67754548,65852.0,65851.0,0.000828]
[1727480572000,0.67755793,65852.0,65851.0,0.000828]
[1727480572724,0.83060977,65852.0,65851.0,0.000828]
[1727480574444,0.75945793,65852.0,65851.0,0.000828]
[1727480574917,1.18592293,65852.0,65851.0,0.000828]
[1727480575163,1.46752864,65852.0,65851.0,0.000828]
[1727480575404,1.45752864,65852.0,65851.0,0.000828]
[1727480575631,1.47052864,65852.0,65851.0,0.000828]
[1727480576268,1.44352864,65852.0,65851.0,0.000828]
[1727480576682,1.77143564,65852.0,65851.0,0.000828]
[1727480576896,1.76876093,65852.0,65851.0,0.000828]
[1727480577303,1.78276093,65852.0,65851.0,0.000828]
[1727480577507,1.76876093,65852.0,65851.0,0.000828]
[1727480577872,1.78276093,65852.0,65851.0,0.000828]
[1727480578494,1.76876093,65852.0,65851.0,0.000828]
[1727480578722,1.75476093,65852.0,65851.0,0.000828]
[1727480579519,1.76876093,65852.0,65851.0,0.000828]
[1727480580935,1.78230248,65852.0,65851.0,0.000828]
[1727480587112,1.04193048,65852.0,65851.0,0.000828]
[1727480587315,1.15279945,65852.0,65851.0,0.000828]
[1727480587525,1.43257748,65852.0,65851.0,0.000828]
[1727480590163,2.00651348,65852.0,65851.0,0.000828]
[1727480590374,0.96003048,65852.0,65851.0,0.000828]
[1727480590584,0.68025245,65852.0,65851.0,0.000828]
[1727480594947,0.6802634,65852.0,65851.0,0.000828]
[1727480596355,0.9870324,65852.0,65851.0,0.000828]
[1727480599604,0.98716648,65852.0,65851.0,0.000828]
[1727480601752,0.68039748,65852.0,65851.0,0.000828]
[1727480603904,0.48149748,65852.0,65851.0,0.000828]
[1727480607383,0.48204024,65852.0,65851.0,0.000828]
[1727480609605,0.48207206,65852.0,65851.0,0.000828]
[1727480619200,0.281511,65852.0,65851.0,0.000828]
[1727480619413,0.48232979,65852.0,65851.0,0.000828]
[1727480619637,0.48232979,65852.0,65851.0,0.00878542]
[1727480619880,0.48232979,65852.0,65851.0,0.000828]
[1727480630871,0.63540898,65852.0,65851.0,0.000828]
[1727480633980,0.63669909,65852.0,65851.0,0.000828]
[1727480635423,0.48363276,65852.0,65851.0,0.000828]
[1727480635840,0.63669562,65852.0,65851.0,0.000828]
[1727480636650,0.48363276,65852.0,65851.0,0.000828]
[1727480640855,0.67903276,65852.0,65851.0,0.000828]
[1727480643407,0.251862,65849.0,65848.0,0.000828]
[1727480643662,0.45510198,65849.0,65848.0,0.000828]
[1727480643893,0.45398376,65849.0,65848.0,0.000828]
[1727480644124,0.49367058,65849.0,65848.0,0.000828]
[1727480644371,0.46985677,65849.0,65848.0,0.000828]
[1727480644613,0.48385677,65849.0,65848.0,0.000828]
[1727480644865,0.49785677,65849.0,65848.0,0.000828]
[1727480646429,0.49737355,65849.0,65848.0,0.000828]
[1727480647083,0.52118534,65849.0,65848.0,0.000828]
[1727480647321,0.52119233,65849.0,65848.0,0.000828]
[1727480647514,0.49738054,65849.0,65848.0,0.000828]
[1727480648187,0.52119233,65849.0,65848.0,0.000828]
[1727480648397,0.49738054,65849.0,65848.0,0.000828]
[1727480649650,0.50139233,65849.0,65848.0,0.000828]
[1727480649870,0.49738054,65849.0,65848.0,0.000828]
[1727480651539,0.52119235,65849.0,65848.0,0.000828]
[1727480653054,0.70339235,65849.0,65848.0,0.000828]
[1727480653263,0.1,65848.0,65847.0,0.01380768]
[1727480653482,0.45462775,65848.0,65847.0,0.01380768]
[1727480653731,0.45350953,65848.0,65847.0,0.01380768]
[1727480654379,0.46750953,65848.0,65847.0,0.01380768]
[1727480654987,0.48050953,65848.0,65847.0,0.01380768]
[1727480662081,0.47996427,65848.0,65847.0,0.01380768]
[1727480665079,0.50377804,65848.0,65847.0,0.01380768]
[1727480666986,0.50375041,65848.0,65847.0,0.01380768]
[1727480667184,0.50540641,65848.0,65847.0,0.01380768]
[1727480667623,0.48159264,65848.0,65847.0,0.01380768]
[1727480671001,0.50540509,65848.0,65847.0,0.01380768]
[1727480671968,0.50537883,65848.0,65847.0,0.01380768]
[1727480676922,0.50540255,65848.0,65847.0,0.01380768]
[1727480678398,0.65848272,65848.0,65847.0,0.01380768]
[1727480679329,0.65849136,65848.0,65847.0,0.01380768]
[1727480679785,0.50540255,65848.0,65847.0,0.01380768]
[1727480681042,0.50540255,65848.0,65847.0,0.02178602]
[1727480681456,0.50540255,65848.0,65847.0,0.01380768]
[1727480683362,0.4815901,65848.0,65847.0,0.01380768]
[1727480685069,0.50540151,65848.0,65847.0,0.19860768]
[1727480686432,0.4815901,65848.0,65847.0,0.19860768]
[1727480689640,0.50540152,65848.0,65847.0,0.19860768]
[1727480690285,0.50540152,65848.0,65847.0,0.01380768]
[1727480690667,0.50540152,65848.0,65847.0,0.02177417]
[1727480696418,0.30433142,65848.0,65847.0,0.02177417]
[1727480696614,0.5057089,65848.0,65847.0,0.02177417]
[1727480697470,0.5057031,65848.0,65847.0,0.02177417]
[1727480698800,0.5057031,65848.0,65847.0,0.01380768]
[1727480699222,0.50569689,65848.0,65847.0,0.01380768]
[1727480706054,0.65878716,65848.0,65847.0,0.01380768]
[1727480706260,0.50569689,65848.0,65847.0,0.01380768]
[1727480706492,0.65878716,65848.0,65847.0,0.01380768]
[1727480706758,0.30433142,65848.0,65847.0,0.01380768]
[1727480708478,0.65880854,65848.0,65847.0,0.01380768]
[1727480709737,0.5057211,65848.0,65847.0,0.01380768]
[1727480709947,0.30433142,65848.0,65847.0,0.01380768]
[1727480713500,0.65875719,65848.0,65847.0,0.01380768]
[1727480714147,0.50566027,65848.0,65847.0,0.01380768]
[1727480714537,0.65876233,65848.0,65847.0,0.01380768]
[1727480714793,0.50566027,65848.0,65847.0,0.01380768]
[1727480715224,0.50565959,65848.0,65847.0,0.01380768]
[1727480717934,0.65878462,65848.0,65847.0,0.01380768]
[1727480719711,0.50565959,65848.0,65847.0,0.01380768]
[1727480721055,0.65881108,65848.0,65847.0,0.01380768]
[1727480721704,0.50565959,65848.0,65847.0,0.01380768]
[1727480730196,0.50579491,65848.0,65847.0,0.01380768]
[1727480730958,0.6590101,65848.0,65847.0,0.01380768]
[1727480731387,0.50579491,65848.0,65847.0,0.01380768]
[1727480731592,0.6590101,65848.0,65847.0,0.01380768]
[1727480731780,0.50579491,65848.0,65847.0,0.01380768]
[1727480733505,0.6590101,65848.0,65847.0,0.01380768]
[1727480734550,0.50579491,65848.0,65847.0,0.01380768]
[1727480734746,0.65906933,65848.0,65847.0,0.01380768]
[1727480735767,0.50587797,65848.0,65847.0,0.01380768]
[1727480735974,0.65906933,65848.0,65847.0,0.01380768]
[1727480736409,0.50587797,65848.0,65847.0,0.01380768]
[1727480736592,0.65906933,65848.0,65847.0,0.01380768]
[1727480736794,0.50587797,65848.0,65847.0,0.01380768]
[1727480737767,0.65906933,65848.0,65847.0,0.01380768]
[1727480737997,0.50587797,65848.0,65847.0,0.01380768]
[1727480738211,0.65906933,65848.0,65847.0,0.01380768]
[1727480738959,0.50587797,65848.0,65847.0,0.01380768]
[1727480739166,0.65906933,65848.0,65847.0,0.01380768]
[1727480740023,0.50587797,65848.0,65847.0,0.01380768]
[1727480740248,0.65906933,65848.0,65847.0,0.01380768]
[1727480741236,0.50587797,65848.0,65847.0,0.01380768]
[1727480742211,0.65905028,65848.0,65847.0,0.01380768]
[1727480743295,0.50587797,65848.0,65847.0,0.01380768]
[1727480754376,0.50598826,65848.0,65847.0,0.01380768]
[1727480761569,0.77318826,65848.0,65847.0,0.01380768]
[1727480761976,0.74937684,65848.0,65847.0,0.01380768]
[1727480762892,0.74885741,65848.0,65847.0,0.01380768]
[1727480765328,0.77267038,65848.0,65847.0,0.01380768]
[1727480767640,0.77268798,65848.0,65847.0,0.01380768]
[1727480770632,0.74887501,65848.0,65847.0,0.01380768]
[1727480772090,1.03040748,65848.0,65847.0,0.01380768]
[1727480772298,0.74883978,65848.0,65847.0,0.01380768]
[1727480773527,0.77265272,65848.0,65847.0,0.01380768]
[1727480775007,0.74883978,65848.0,65847.0,0.01380768]
[1727480777419,0.74857819,65848.0,65847.0,0.01380768]
[1727480778098,0.77239151,65848.0,65847.0,0.01380768]
[1727480779223,0.74857819,65848.0,65847.0,0.01380768]
[1727480782263,1.05355198,65848.0,65847.0,0.01380768]
[1727480782487,0.77237443,65848.0,65847.0,0.01380768]
[1727480783419,0.74856111,65848.0,65847.0,0.01380768]
[1727480784064,0.48136111,65848.0,65847.0,0.01380768]
[1727480784292,0.63438355,65848.0,65847.0,0.01380768]
[1727480784537,0.48136111,65848.0,65847.0,0.02228954]
[1727480784742,0.48136111,65848.0,65847.0,0.01380768]
[1727480789177,0.48136111,65848.0,65847.0,0.02228954]
[1727480789944,0.48136111,65848.0,65847.0,0.01380768]
[1727480792851,0.48136111,65848.0,65847.0,0.20510768]
[1727480793537,0.32949711,65848.0,65847.0,0.32020261]
[1727480793750,0.32018748,65848.0,65847.0,0.55893683]
[1727480793982,0.028656,65848.0,65847.0,0.55893683]
[1727480794251,0.07400431,65848.0,65847.0,0.55893683]
[1727480794457,0.028656,65848.0,65847.0,0.55893683]
[1727480794890,0.014656,65848.0,65847.0,0.55893683]
[1727480795350,0.016656,65848.0,65847.0,0.55893683]
[1727480795629,0.003656,65848.0,65847.0,0.55893683]
[1727480795832,0.003656,65848.0,65847.0,0.67627951]
[1727480796092,0.003656,65848.0,65847.0,0.67827951]
[1727480797401,0.001656,65848.0,65847.0,0.67827951]
[1727480797877,0.002656,65848.0,65847.0,0.68327951]
[1727480798384,0.002656,65848.0,65847.0,0.56593683]
[1727480798881,0.003656,65848.0,65847.0,0.56593683]
[1727480801176,0.003656,65848.0,65847.0,0.56393683]
[1727480803055,0.003656,65848.0,65847.0,0.56593683]
[1727480805574,0.003656,65848.0,65847.0,0.56393683]
[1727480806043,0.003656,65848.0,65847.0,0.68427951]
[1727480823279,0.003656,65848.0,65847.0,0.70060222]
[1727480824343,0.003656,65848.0,65847.0,0.68427951]
[1727480824554,0.003656,65848.0,65847.0,0.70063659]
[1727480826280,0.003656,65848.0,65847.0,0.68427951]
[1727480827259,0.003656,65848.0,65847.0,0.70066159]
[1727480833190,0.003656,65848.0,65847.0,0.68427951]
[1727480833391,0.003656,65848.0,65847.0,0.70061672]
[1727480833851,0.04523789,65865.0,65862.0,0.11509493]
[1727480834052,0.196456,65868.0,65863.0,0.00303626]
[1727480834375,0.196456,65868.0,65867.0,0.151821]
[1727480834720,0.196456,65868.0,65867.0,0.16065368]
[1727480835154,0.101656,65868.0,65867.0,0.16065368]
[1727480835356,0.101656,65868.0,65867.0,0.27962926]
[1727480836338,0.001656,65868.0,65867.0,0.27962926]
[1727480836554,0.001656,65868.0,65867.0,0.28266533]
[1727480836555,0.004656,65868.0,65867.0,0.28266533]
[1727480837425,0.001656,65868.0,65867.0,0.28266533]
[1727480837630,0.001656,65868.0,65867.0,0.28866533]
[1727480837631,0.002656,65868.0,65867.0,0.28866533]
[1727480837835,0.006656,65868.0,65867.0,0.28866533]
[1727480838461,0.002656,65868.0,65867.0,0.28866533]
[1727480838871,0.002656,65868.0,65867.0,0.29266533]
[1727480841784,0.002656,65868.0,65867.0,0.56186533]
[1727480841988,0.002656,65868.0,65867.0,0.55882926]
[1727480844205,0.002656,65868.0,65867.0,0.56082926]
[1727480844359,0.002656,65868.0,65867.0,0.55882926]
[1727480844557,0.002656,65868.0,65867.0,0.56382926]
[1727480846469,0.002656,65868.0,65867.0,0.56582926]
[1727480859304,0.002656,65868.0,65867.0,0.44685368]
[1727480870056,0.266456,65868.0,65867.0,0.01883268]
[1727480870298,0.266456,65868.0,65867.0,0.28574861]
[1727480870299,0.002656,65868.0,65867.0,0.28574861]
[1727480870891,0.182212,65873.0,65872.0,0.151809]
[1727480871108,0.182212,65873.0,65872.0,0.08929926]
[1727480871310,0.182212,65873.0,65872.0,0.00746764]
[1727480872243,0.182212,65873.0,65872.0,0.00846764]
[1727480873248,0.182212,65873.0,65872.0,0.001]
[1727480873249,0.334019,65873.0,65872.0,0.001]
[1727480873657,0.335019,65873.0,65872.0,0.001]
[1727480874329,0.183212,65873.0,65872.0,0.001]
[1727480874474,0.335019,65873.0,65872.0,0.001]
[1727480874675,0.335019,65873.0,65872.0,0.00849442]
[1727480874920,0.183212,65873.0,65872.0,0.001]
[1727480875344,0.335019,65873.0,65872.0,0.001]
[1727480875614,0.335019,65873.0,65872.0,0.00849442]
[1727480876342,0.38027308,65873.0,65872.0,0.00849442]
[1727480876588,0.335019,65873.0,65872.0,0.00849442]
[1727480876815,0.38027308,65873.0,65872.0,0.00849442]
[1727480878426,0.335019,65873.0,65872.0,0.00849442]
[1727480878714,0.40290012,65873.0,65872.0,0.00849442]
[1727480878967,0.183212,65873.0,65872.0,0.00849442]
[1727480879200,0.40290012,65873.0,65872.0,0.00849442]
[1727480880161,0.25109312,65873.0,65872.0,0.00849442]
[1727480880426,0.183212,65873.0,65872.0,0.00849442]
[1727480880684,0.47871178,65873.0,65872.0,0.00849442]
[1727480880945,0.63054768,65873.0,65872.0,0.00849442]
[1727480881467,0.63220368,65873.0,65872.0,0.001]
[1727480881956,0.63220368,65873.0,65872.0,0.0085191]
[1727480883199,0.48039668,65873.0,65872.0,0.0085191]
[1727480884448,0.63220368,65873.0,65872.0,0.0085191]
[1727480884645,0.54153112,65873.0,65872.0,0.0085191]
[1727480884797,0.54153112,65873.0,65872.0,0.001]
[1727480884973,0.63221126,65873.0,65872.0,0.001]
[1727480885620,0.54153112,65873.0,65872.0,0.001]
[1727480886021,0.54145797,65873.0,65872.0,0.001]
[1727480886419,0.63213248,65873.0,65872.0,0.001]
[1727480886833,0.63213248,65873.0,65872.0,0.0085191]
[1727480888203,0.63213248,65873.0,65872.0,0.001]
[1727480888423,0.54145797,65873.0,65872.0,0.001]
[1727480888545,0.336675,65873.0,65872.0,0.001]
[1727480888758,0.63220833,65873.0,65872.0,0.001]
[1727480889143,0.54153382,65873.0,65872.0,0.001]
[1727480889328,0.63219688,65873.0,65872.0,0.001]
[1727480890401,0.336675,65873.0,65872.0,0.001]
[1727480890613,0.54155397,65873.0,65872.0,0.001]
[1727480890826,0.336675,65873.0,65872.0,0.001]
[1727480891038,0.54155287,65873.0,65872.0,0.001]
[1727480891238,0.336675,65873.0,65872.0,0.001]
[1727480891951,0.54154363,65873.0,65872.0,0.001]
[1727480892165,0.63220669,65873.0,65872.0,0.001]
[1727480892385,0.54154363,65873.0,65872.0,0.00850785]
[1727480892588,0.6321364,65873.0,65872.0,0.00850785]
[1727480892991,0.6321364,65873.0,65872.0,0.001]
[1727480893139,0.4803294,65873.0,65872.0,0.001]
[1727480893355,0.6321364,65873.0,65872.0,0.001827]
[1727480893553,0.5414814,65873.0,65872.0,0.00933485]
[1727480893802,0.6321364,65873.0,65872.0,0.00933485]
[1727480894028,0.6321364,65873.0,65872.0,0.001827]
[1727480894665,0.6176814,65873.0,65872.0,0.001827]
[1727480894869,0.7176814,65873.0,65872.0,0.001827]
[1727480897978,0.74148484,65873.0,65872.0,0.001827]
[1727480900667,0.74042059,65873.0,65872.0,0.001827]
[1727480901554,0.58861359,65873.0,65872.0,0.001827]
[1727480901759,0.66422059,65873.0,65872.0,0.001827]
[1727480901968,0.62564196,65873.0,65872.0,0.001827]
[1727480902119,0.75364552,65873.0,65872.0,0.001827]
[1727480902322,0.60183852,65873.0,65872.0,0.00934029]
[1727480902522,0.75364552,65873.0,65872.0,0.00934029]
[1727480903132,0.75364552,65873.0,65872.0,0.001827]
[1727480903331,0.60183852,65873.0,65872.0,0.001827]
[1727480903550,0.75364552,65873.0,65872.0,0.001827]
[1727480903777,0.75364552,65873.0,65872.0,0.00934029]
[1727480904015,0.75364552,65873.0,65872.0,0.001827]
[1727480904991,0.75364674,65873.0,65872.0,0.00934029]
[1727480905239,0.64041715,65873.0,65872.0,0.001827]
[1727480905488,0.48914402,65873.0,65872.0,0.00934029]
[1727480905741,0.57973437,65873.0,65872.0,0.00934029]
[1727480905996,0.64095102,65873.0,65872.0,0.00934029]
[1727480906476,0.73154137,65873.0,65872.0,0.00934029]
[1727480906693,0.284868,65873.0,65872.0,0.00934029]
[1727480906950,0.48935181,65873.0,65872.0,0.00934029]
[1727480907213,0.57994216,65873.0,65872.0,0.001827]
[1727480907442,0.57994216,65873.0,65872.0,0.00931483]
[1727480908432,0.73174916,65873.0,65872.0,0.00931483]
[1727480908652,0.57994216,65873.0,65872.0,0.00931483]
[1727480909776,0.39773016,65873.0,65872.0,0.00931483]
[1727480909980,0.30713981,65873.0,65872.0,0.16112383]
[1727480910181,0.39773016,65873.0,65872.0,0.00931483]
[1727480910401,0.397812,65873.0,65872.0,0.00931483]
[1727480911376,0.397812,65873.0,65872.0,0.21910971]
[1727480911596,0.002656,65873.0,65872.0,0.16112383]
[1727480912340,0.102656,65873.0,65872.0,0.16112383]
[1727480913341,0.19327148,65873.0,65872.0,0.16112383]
[1727480913832,0.39804562,65873.0,65872.0,0.16112383]
[1727480914331,0.29804562,65873.0,65872.0,0.16112383]
[1727480914588,0.20743014,65873.0,65872.0,0.25708161]
[1727480914792,0.002656,65873.0,65872.0,0.25708161]
[1727480915422,0.09334886,65873.0,65872.0,0.25708161]
[1727480915646,0.09334886,65873.0,65872.0,0.16112383]
[1727480915858,0.2983089,65873.0,65872.0,0.16112383]
[1727480917429,0.0706802,65873.0,65872.0,0.16112383]
[1727480919383,0.002656,65873.0,65872.0,0.16112383]
[1727480919585,0.002656,65873.0,65872.0,0.42652383]
[1727480919794,0.002656,65873.0,65872.0,0.54211161]
[1727480920619,0.002656,65873.0,65872.0,0.54111161]
[1727480920926,0.002656,65873.0,65872.0,0.54911161]
[1727480922185,0.003656,65873.0,65872.0,0.55611161]
[1727480924882,0.003656,65873.0,65872.0,0.67120654]
[1727480930115,0.003656,65873.0,65872.0,0.17512383]
[1727480930322,0.003656,65873.0,65872.0,0.29021876]
[1727480963373,0.04902819,65873.0,65872.0,0.29021876]
[1727480963819,0.003656,65873.0,65872.0,0.29021876]
[1727480964983,0.003656,65873.0,65872.0,0.36721876]
[1727480965199,0.003656,65873.0,65872.0,0.48037654]
[1727480965427,0.003656,65873.0,65872.0,0.48237654]
[1727480969318,0.003656,65873.0,65872.0,0.48037654]
[1727480969985,0.003656,65873.0,65872.0,0.48237654]
[1727480970190,0.003656,65873.0,65872.0,0.36528161]
[1727480970449,0.003656,65873.0,65872.0,0.48037654]
[1727480970702,0.003656,65873.0,65872.0,0.48237654]
[1727480970955,0.003656,65873.0,65872.0,0.36528161]
[1727480971187,0.003656,65873.0,65872.0,0.48037654]
[1727480971443,0.003656,65873.0,65872.0,0.48237654]
[1727480978159,0.003656,65873.0,65872.0,0.36528161]
[1727480978364,0.003656,65873.0,65872.0,0.48037654]
[1727480979647,0.003656,65873.0,65872.0,0.48237654]
[1727480981322,0.02745491,65873.0,65872.0,0.48037654]
[1727480983220,0.02745491,65873.0,65872.0,0.48237654]
[1727480985038,0.02745491,65873.0,65872.0,0.48037654]
[1727480985271,0.02745491,65873.0,65872.0,0.59197654]
[1727480986379,0.068001,65882.0,65880.0,0.303581]
[1727480986626,0.27264704,65881.0,65880.0,0.455372]
[1727480986842,0.12028912,65885.0,65880.0,0.455372]
[1727480986843,0.1044,65889.0,65886.0,0.151777]
[1727480987101,0.1072,65891.0,65886.0,0.26990712]
[1727480987311,0.1072,65891.0,65886.0,0.27779835]
[1727480988346,0.1072,65891.0,65886.0,0.27579835]
[1727480988552,0.1072,65891.0,65886.0,0.39264788]
[1727480988756,0.1072,65891.0,65886.0,0.38961269]
[1727480989144,0.1072,65891.0,65886.0,0.39061269]
[1727481002501,0.1072,65891.0,65886.0,0.27176316]
[1727481006851,0.00134529,65887.0,65886.0,0.27176316]
[1727481007300,0.00134529,65887.0,65886.0,0.27479836]
[1727481010182,0.00134529,65887.0,65886.0,0.27176316]
[1727481012707,0.00134529,65887.0,65886.0,0.27259116]
[1727481014799,0.00134529,65887.0,65886.0,0.15749623]
[1727481015002,0.00134529,65887.0,65886.0,0.27259116]
[1727481019862,0.09364529,65887.0,65886.0,0.00971923]
[1727481020071,0.24542029,65887.0,65886.0,0.00971923]
[1727481020481,0.24542029,65887.0,65886.0,0.001828]
[1727481021302,0.24542029,65887.0,65886.0,0.01047986]
[1727481021509,0.24542029,65887.0,65886.0,0.001828]
[1727481021695,0.24542029,65887.0,65886.0,0.01047986]
[1727481021838,0.24542029,65887.0,65886.0,0.001828]
[1727481022063,0.24542029,65887.0,65886.0,0.01047986]
[1727481022481,0.53851843,65887.0,65886.0,0.01047986]
[1727481023379,0.53851843,65887.0,65886.0,0.001828]
[1727481023966,0.53851843,65887.0,65886.0,0.01047986]
[1727481024175,0.53851843,65887.0,65886.0,0.001828]
[1727481024346,0.53851843,65887.0,65886.0,0.01047986]
[1727481024553,0.53851843,65887.0,65886.0,0.001828]
[1727481024754,0.53851843,65887.0,65886.0,0.01047986]
[1727481025004,0.53851843,65887.0,65886.0,0.001828]
[1727481025592,0.53848834,65887.0,65886.0,0.001828]
[1727481028126,0.53848834,65887.0,65886.0,0.01047986]
[1727481028332,0.53848834,65887.0,65886.0,0.001828]
[1727481028891,0.53948834,65887.0,65886.0,0.001828]
[1727481029904,0.53948834,65887.0,65886.0,0.000828]
[1727481030538,0.54048834,65887.0,65886.0,0.000828]
[1727481030748,0.54248834,65887.0,65886.0,0.000828]
[1727481032013,0.64248834,65887.0,65886.0,0.000828]
[1727481032212,0.55187348,65887.0,65886.0,0.11592293]
[1727481035076,0.34942029,65887.0,65886.0,0.12459379]
[1727481035279,0.41737831,65887.0,65886.0,0.12459379]
[1727481035480,0.55209541,65887.0,65886.0,0.12459379]
[1727481035640,0.41738043,65887.0,65886.0,0.12459379]
[1727481035840,0.24295329,65887.0,65886.0,0.12459379]
[1727481036051,0.26560543,65887.0,65886.0,0.12459379]
[1727481036442,0.41738043,65887.0,65886.0,0.12459379]
[1727481036985,0.34942029,65887.0,65886.0,0.12459379]
[1727481037246,0.24295351,65887.0,65886.0,0.12459379]
[1727481037439,0.26560543,65887.0,65886.0,0.12459379]
[1727481037671,0.00534529,65887.0,65886.0,0.12459379]
[1727481037876,0.17330543,65887.0,65886.0,0.12459379]
[1727481038083,0.15065598,65887.0,65886.0,0.12459379]
[1727481038286,0.1744522,65887.0,65886.0,0.12459379]
[1727481038490,0.12914151,65887.0,65886.0,0.12459379]
[1727481038939,0.17445295,65887.0,65886.0,0.27637079]
[1727481039148,0.09710165,65887.0,65886.0,0.12459379]
[1727481039357,0.02914151,65887.0,65886.0,0.27637079]